Cogmind - Beta 11 X7 @@@ ROGUE MODE // 2021.09.13 @ 03:13:15 // AFD2019/Pay2Buy Player: PhenomPhear Result: Self-destructed Performance ------------- Evolutions (1) 500 Regions Visited (3) 600 Robots Destroyed (42) 210 Value Destroyed (1254) 1254 Prototype IDs (0) 0 Alien Tech Used (0) 0 Bonus (95) 95 TOTAL SCORE: 2659 Bonus ------- High Alert Combat Kills 95 Cogmind --------- Core Integrity 123/400 Matter 300/300 Energy 100/100 System Corruption 2% Temperature Cool (0) Movement Rolling (90) Location -9/Materials Parts ------- > --- POWER (1) -------- (None) > --- PROPULSION (2) --- Armored Wheel > --- UTILITY (4) ------ (None) > --- WEAPON (2) ------- Axe > --- INVENTORY (10) --- (None) Peak State ------------ > --- POWER ------------ Light Nuclear Core > --- PROPULSION ------- Airjet Airjet > --- UTILITY ---------- Maneuvering Thrusters Weapon Shielding > --- WEAPON ----------- Improved Grenade Launcher Axe > --- INVENTORY -------- (None) [Rating: 19] Favorites ----------- Power Ion Engine Engine Ion Engine Power Core Light Nuclear Core Propulsion Improved Hover Unit Wheel Armored Wheel Hover Unit Improved Hover Unit Utility Weapon Shielding Device Maneuvering Thrusters Protection Weapon Shielding Weapon Mini Grenade Launcher Launcher Mini Grenade Launcher Impact Weapon Flail Slashing Weapon Axe Build | -11 -10 -10 -9 ------- Run | Scr Mat Min Mat Slots Evolved 2 | . . . 2 Power . | . . . . Propulsion . | . . . . Utility 2 | . . . 2 Weapon . | . . . . Parts Attached . | . . . . Power . | . . . . Engine . | . . . . Core . | . . . . Reactor . | . . . . Propulsion . | . . . . Treads . | . . . . Leg . | . . . . Wheel . | . . . . Hover . | . . . . Flight . | . . . . Utility . | . . . . Device . | . . . . Storage . | . . . . Processor . | . . . . Hackware . | . . . . Protection . | . . . . Artifact . | . . . . Weapon . | . . . . Energy Gun . | . . . . Energy Cannon . | . . . . Ballistic Gun . | . . . . Ballistic Cannon . | . . . . Launcher . | . . . . Special Weapon . | . . . . Impact Weapon . | . . . . Slashing Weapon . | . . . . Piercing Weapon . | . . . . Special Melee Weapon . | . . . . Unidentified Prototypes . | . . . . Parts Lost 18 | . 2 6 10 Power 3 | . . 1 2 Propulsion 9 | . 2 2 5 Utility 3 | . . 1 2 Weapon 3 | . . 2 1 Highest Loss Streak 6 | . 1 6 4 Average Slot Usage (%) 71 | . 87 66 53 Engine 7 | . 14 9 . Core 3 | . . . 8 Wheel 4 | . . . 9 Hover 15 | . 18 18 11 Device 1 | . . . 3 Protection 17 | . 28 21 4 Launcher 9 | . 14 8 4 Impact Weapon 6 | . 12 8 . Slashing Weapon 4 | . . . 11 Naked Turns . | . . . . Heaviest Build 16 | 8 10 10 16 Greatest Support 24 | 14 14 14 24 Greatest Overweight (x) 1 | . 1 1 1 Average Overweight (x) . | . . . . Largest Inventory Capacity 10 | 10 10 10 10 Average Capacity 10 | 10 10 10 10 Most Carried . | . . . . Average Carried . | . . . . Final Capacity 10 | 10 10 10 10 Final Carried . | . . . . Class Distribution -------------------- 100% | Mutant Dominant Class ---------------- Mutant | -10/Materials Mutant | -10/Mines Mutant | -9/Materials Resources | -11 -10 -10 -9 ----------- Run | Scr Mat Min Mat Matter Collected 608 | . 271 11 326 Remotely . | . . . . Salvage Created 1096 | . 357 57 682 Parts . | . . . . Haulers Intercepted 4 | . 2 . 2 Recyclers Shooed . | . . . . Parts Field Recycled . | . . . . Retrieved Matter . | . . . . Parts Self-Destructed . | . . . . Prevented . | . . . . Kills | -11 -10 -10 -9 ------- Run | Scr Mat Min Mat Combat Hostiles Destroyed 39 | . 10 16 13 Melee 7 | . . . 7 AOE 32 | . 10 16 6 Classes Destroyed 11 | . 8 1 2 Worker 6 | . 4 . 2 Builder 2 | . 2 . . Hauler 4 | . 2 . 2 Recycler 2 | . 1 . 1 Operator 1 | . 1 . . Watcher 1 | . 1 . . Swarmer 10 | . 7 3 . Grunt 9 | . 3 . 6 Duelist 1 | . . . 1 Sentry 6 | . . . 6 Assembled 13 | . . 13 . Best Kill Streak 13 | . 9 13 5 Combat Bots Only 13 | . 3 13 4 Max Kills in Single Turn 6 | . 3 6 2 Gunslinging . | . . . . Exploded 6 | . 2 6 2 Melee 1 | . . . 1 Uniques/NPCs Destroyed . | . . . . Combat | -11 -10 -10 -9 -------- Run | Scr Mat Min Mat Damage Taken 1523 | . 301 325 897 Core 508 | . 102 129 277 Absorbed by Shields . | . . . . Core Remaining (%) 53 | 100 . 7 . Volleys Fired 45 | 1 26 7 11 Largest 1 | 1 1 1 1 Hottest 36 | 30 30 30 36 Shots Fired 45 | 1 26 7 11 Gun . | . . . . Cannon . | . . . . Launcher 45 | 1 26 7 11 Special . | . . . . Kinetic . | . . . . Thermal . | . . . . Explosive 45 | 1 26 7 11 Electromagnetic . | . . . . Robot Hit Streak 8 | . 2 2 8 Robot Miss Streak 1 | . 1 . . Penetration Max . | . . . . Secondary Targets . | . . . . Shots Hit Robots 43 | . 8 2 33 Core Hits 79 | . 27 28 24 Critical Kills . | . . . . Critical Parts Destroyed . | . . . . Critical Strikes . | . . . . Melee Attacks 75 | . 24 1 50 Impact 25 | . 24 1 . Slashing 50 | . . . 50 Piercing . | . . . . Sneak Attacks 11 | . 5 . 6 Combat Hostiles . | . . . . Follow-up Attacks . | . . . . Damage Inflicted 5082 | 17 1693 1235 2137 Guns . | . . . . Cannons . | . . . . Explosions 3312 | 17 1338 1235 722 Melee 1770 | . 355 . 1415 Ramming . | . . . . Kinetic . | . . . . Thermal 374 | . 320 . 54 Explosive 2863 | 17 943 1235 668 Electromagnetic 75 | . 75 . . Impact 355 | . 355 . . Slashing 1415 | . . . 1415 Piercing . | . . . . Highest Corruption 2 | . 2 2 2 Average Corruption 2 | . 2 2 2 Corruption Purged . | . . . . Effects 9 | . 7 1 1 Message Errors 4 | . 3 . 1 Heat Flow Errors 4 | . 3 1 . Data Loss (minor) 1 | . 1 . . Overload Shots . | . . . . Overflow Damage 639 | . 415 64 160 Projectiles . | . . . . Explosions 316 | . 213 64 39 Melee 323 | . 202 . 121 Knockbacks 2 | . 2 . . Impact 2 | . 2 . . Kinetic . | . . . . Secondary . | . . . . Self-Inflicted Damage 198 | . 181 17 . Shots 5 | . 4 1 . Rammed . | . . . . Targets Rammed . | . . . . Kicked . | . . . . Crushed . | . . . . Highest Temperature 243 | . 243 219 13 Average Temperature 79 | . 96 90 4 Received Heat Transfer 275 | . 30 20 225 Siege Activations . | . . . . Robots Corrupted . | . . . . Combat Hostiles . | . . . . Parts Fried . | . . . . Impact Corruptions 6 | . 6 . . Robots Melted . | . . . . Combat Hostiles . | . . . . Parts Melted . | . . . . Heat Transferred 300 | . 250 . 50 Parts Sabotaged . | . . . . Parts Stolen . | . . . . Parts Stripped . | . . . . Power Chain Reactions . | . . . . Missiles Intercepted . | . . . . Alert | -11 -10 -10 -9 ------- Run | Scr Mat Min Mat Peak Influence 626 | . 621 356 626 Initial 241 | . . 241 115 Average 395 | . 386 325 439 Maximum Alert Level 2 | . 2 1 2 Low Security (%) 10 | 100 12 . 5 Level 1 30 | . 29 100 20 Level 2 59 | . 57 . 73 Level 3 . | . . . . Level 4 . | . . . . Level 5 . | . . . . High Security . | . . . . Max Security . | . . . . Squads Dispatched 3 | . 2 . 1 Investigation . | . . . . Extermination . | . . . . Reinforcement 3 | . 2 . 1 Assault . | . . . . Garrison . | . . . . Intercept . | . . . . Construction Impeded 1 | . . . 1 Haulers Reinforced . | . . . . Active Scanning Responses . | . . . . Cargo Convoy Interrupts . | . . . . Stealth | -11 -10 -10 -9 --------- Run | Scr Mat Min Mat Distress Signals 1 | . 1 . . Communications Jammed . | . . . . Distress Signals . | . . . . Times Spotted 64 | . 26 22 16 Peak Tracking Total 19 | . 5 19 4 Tactical Retreats 1 | . . 1 . Traps | -11 -10 -10 -9 ------- Run | Scr Mat Min Mat Traps Triggered 3 | . 1 . 2 Indirectly . | . . . . Trap Hack Attempts . | . . . . Triggered . | . . . . Disarmed . | . . . . Reprogrammed . | . . . . Reused . | . . . . Traps Extracted . | . . . . Installed . | . . . . Triggered 1 | . 1 . . Machines | -11 -10 -10 -9 ---------- Run | Scr Mat Min Mat Machines Disabled 45 | . 29 2 14 Max in Single Turn 4 | . 4 1 2 Machines Sabotaged . | . . . . Garrisons Compromised . | . . . . Overloaded Fab Kills . | . . . . Fab Network Shutdowns . | . . . . Hacking | -11 -10 -10 -9 --------- Run | Scr Mat Min Mat Machines Accessed 2 | . 1 . 1 Terminals 2 | . 1 . 1 Fabricators . | . . . . Repair Stations . | . . . . Recycling Units . | . . . . Scanalyzers . | . . . . Garrison Access . | . . . . Total Hacks 4 | . 3 . 1 Successful 4 | . 3 . 1 Failed . | . . . . Catastrophic . | . . . . Database Lockouts . | . . . . Manual . | . . . . Terminals 4 | . 3 . 1 Fabricators . | . . . . Repair Stations . | . . . . Recycling Units . | . . . . Scanalyzers . | . . . . Garrison Access . | . . . . Terminal Hacks 4 | . 3 . 1 Record 1 | . 1 . . Robot Analysis 1 | . 1 . . Alert Level 1 | . 1 . . Dispatch Records 1 | . . . 1 Fabricator Hacks . | . . . . Repair Station Hacks . | . . . . Recycling Unit Hacks . | . . . . Scanalyzer . | . . . . Garrison Access Hacks . | . . . . Unauthorized Hacks . | . . . . Terminals . | . . . . Fabricators . | . . . . Repair Stations . | . . . . Recycling Units . | . . . . Scanalyzers . | . . . . Garrison Access . | . . . . Data Cores Recovered . | . . . . Used . | . . . . Hacking Detections 2 | . 1 . 1 Full Trace Events 1 | . 1 . . Feedback Events . | . . . . Feedback Blocked . | . . . . Robot Schematics Acquired . | . . . . Robots Built . | . . . . Matter . | . . . . Time . | . . . . Total Robot Build Rating . | . . . . Part Schematics Acquired . | . . . . Parts Built . | . . . . Matter . | . . . . Time . | . . . . Total Part Build Rating . | . . . . Parts Repaired . | . . . . Time . | . . . . Parts Recycled . | . . . . Recycled Matter . | . . . . Retrieved Matter . | . . . . Retrieved Components . | . . . . Parts Scanalyzed . | . . . . Part Schematics Acquired . | . . . . Parts Damaged . | . . . . Bothacking | -11 -10 -10 -9 ------------ Run | Scr Mat Min Mat Used RIF Installer . | . . . . Robots Hacked . | . . . . Non-combat . | . . . . Combat . | . . . . Robot Hacks Applied . | . . . . Relay Couplers Released . | . . . . Robots Rewired . | . . . . Allies Hacked . | . . . . Hacks Repelled . | . . . . Allies | -11 -10 -10 -9 -------- Run | Scr Mat Min Mat Total Allies . | . . . . Largest Group . | . . . . Highest-Rated Group . | . . . . Highest-Rated Ally . | . . . . Total Orders . | . . . . Ally Attacks . | . . . . Total Damage . | . . . . Kills . | . . . . Allies Corrupted . | . . . . Allies Melted . | . . . . Intel | -11 -10 -10 -9 ------- Run | Scr Mat Min Mat Robot Analysis Total 1 | . 1 . . Derelict Logs Recovered . | . . . . Drone Launches . | . . . . Drone Recoveries . | . . . . Exploration | -11 -10 -10 -9 ------------- Run | Scr Mat Min Mat Turns Passed 1376 | 29 688 94 565 Spaces Moved 1278 | 28 627 102 521 Core 33 | . . 27 6 Treads . | . . . . Legs . | . . . . Wheels 205 | . . . 205 Hover 1040 | 28 627 75 310 Flight . | . . . . Fastest Speed 50 | 56 56 50 50 Average Speed 79 | 56 91 56 70 Slowest Speed 120 | 56 120 120 120 Overloaded Moves . | . . . . Propulsion Burnouts . | . . . . Robots Hopped . | . . . . Cave-ins Triggered . | . . . . Exploration Rate (%) 46 | 3 97 31 54 Regions Visited 3 Branch Regions 1 Pre-discovered Areas . | . . . . Known Exits Taken . | . . . . Unknown Exits Taken 3 | 1 1 1 . Scrap Searched . | . . . . Spaces Dug 56 | . 21 16 19 Terrain Destroyed 424 | 9 205 41 169 Melee . | . . . . Projectile . | . . . . AOE 424 | 9 205 41 169 Terrain Rammed . | . . . . Walls Destroyed . | . . . . Machines Disabled . | . . . . Actions | -11 -10 -10 -9 --------- Run | Scr Mat Min Mat Total 1465 | 39 679 129 618 Wait 70 | 11 3 20 36 Move 1275 | 27 626 101 521 Hop . | . . . . Pick Up . | . . . . Fast Attach . | . . . . Attach . | . . . . Detach . | . . . . Swap . | . . . . Drop . | . . . . Fire 45 | 1 26 7 11 Melee 75 | . 24 1 50 Ram . | . . . . Kick . | . . . . Crush . | . . . . Escape Stasis . | . . . . Rewire . | . . . . Trap . | . . . . Miscellaneous . | . . . . Route ------- -11/Scrapyard -10/Materials (discovered 5 exits: *Mat x3 / [*Min x2]) -10/Mines -9/Materials (discovered 3 exits: [*Mat x2] / [*Sto]) History --------- Turn | Location | Event 4 | -11/Scrapyard | Discovered new exit (range 13) 30 | -11/Scrapyard | Entered Materials 77 | -10/Materials | Discovered new exit (range 5) 162 | -10/Materials | Discovered new exit (range 9) 207 | -10/Materials | Discovered new exit (range 10) 222 | -10/Materials | Discovered new exit (range 16) 316 | -10/Materials | Build established: Mutant 518 | -10/Materials | Discovered new exit (range 12) 718 | -10/Materials | Entered Mines 757 | -10/Mines | Assembled infested the area 768 | -10/Mines | Core integrity fell below 50% 782 | -10/Mines | Core integrity fell below 20% 790 | -10/Mines | Destroyed 13 combat bots 809 | -10/Mines | Discovered new exit (range 8) 812 | -10/Mines | Lost 6 parts (1p2n1u2w) 812 | -10/Mines | Entered Materials 812 | -9/Materials | Evolved 2 slots: Utility x2 924 | -9/Materials | Discovered new exit (range 7) 971 | -9/Materials | Discovered new exit (range 15) 1097 | -9/Materials | Lost 4 parts (1p2u1w) 1192 | -9/Materials | Discovered new exit (range 16) 1308 | -9/Materials | Core integrity fell below 50% 1377 | -9/Materials | Self-destructed Last Messages --------------- 01333_ T-07 Excavator destroyed. 01333_ Door malfunctions. 01333_ EMP Trap short circuited. 01333_ Door malfunctions. 01333_ A bubble of electromagnetic force engulfs the area. 01333_ EMP Trap short circuited. 01333_ A bubble of electromagnetic force engulfs the area. 01333_ EMP Trap short circuited. 01333_ Chain reaction triggered in Lgt. Nuclear Core. 01333_ A bubble of electromagnetic force engulfs the area. 01333_ Arm. Wheel destroyed. [Purchased: Arm. Wheel] 01338_ U-05 Engineer lays Concrete. 01343_ Material Compactor disabled. 01348_ U-05 Engineer lays Concrete. 01351_ U-05 Engineer builds a Wall. 01352_ Hadron Collector disabled. 01354_ T4SAMN0I8I|4 TKX4Q|&RBKCS#JDF45BC7WBL&H3 01355_ Hadron Collector disabled. 01369_ Arm. Wheel destroyed. Map ----- +----------------------------------------------------+ | ?????????????????????????????????????????????????? | | ?????????????????????????????????????????????????? | | ?????????????????????????????????????????????????? | | ?????????????????????????????????????????????????? | | ?????????????????????????????????????????????????? | | ?????????????????????????????????????????????????? | | ?????????????????????????????????????????????????? | | ?????????????????????????????????????????????????? | | ?????????????????????????????????????????????????? | | ?????????????????????????????????????????????????? | | ?????????????????????????????????????????######### | | ?????????????????????????????????????????# """ # | | ?????????????????????????????????????????## "R" # | | ??????????????????????????????????????????# " " + | | ??????????????????????????????????????????# % # | | ??????????????????????????????????????????# # | | ??????????????????????????????????????????# # | | ??????????????????????????????????????????######## | | ?????????????????????????????????????????????????# | | ????????????????????????#######??????????????????# | | ???????????????#????????# #??????????????????# | | ???????????????# ???????# "" #?????????????????## | | ???????????????# ???????# "" #?????????????????# | | ???????????????# ?????## "T #?????????????????# | | ???????????????# ????#Y "" #?????????????????# | | ???????????????# ?????#@"" #?????????????????# | | ????????????????# ????# #????##???????????# | | ????????????????# #######+###?? ???#???????# | | ????????????????+ #?""" """ #???????# | | ????????????????# + """ """ #???????# | | ????????????????# # """ """ #???????## | | ????????????????######+#### # ?????????# | | ?????????????????# ## # ?????????# | | ?????????????????# ## / ???????????# | | ?????????????????# """" ## # ????????????# | | ?????????????????# """" ## ####/##########????? | | ?????????????????# """ # ### ## ###### | | ?????????????????# # %/ / | | ?????????????????# """ + # # ## | | ?????????????????# """" # # """ # # | | ?????????????????# """" # ###### """ # # | | ?????????????????# ###+######## """ + # | | ?????????????????# # ## # # | | ?????????????????######### ## """ # + | | ?????????????????????????# """ ## """ # # | | ####?#+#?????????????????# " """ ## """ # ## | | #### ###???????????????# """"" ## # # | | # #???????????????# """"" ########## # | | #???????????????# """ #????????# # | | #??????########## ?????????# # | +----------------------------------------------------+ Best States ------------- Heat Dissipation 28 Energy Generation 14 Energy Capacity 250 Matter Stores 300 Matter Capacity 300 Sight Range 16 Terrain Scan Density 10 Propulsion Shielding 33 Weapon Shielding 33 Evasion (%) 59 Item Schematics ----------------- None Robot Schematics ------------------ None Fabricated ------------ Nothing Alien Tech Used ----------------- None Achievements -------------- None Challenges ------------ None Cogshop Purchases (20) ------------------------ Mni. Grenade Launcher (1049) Weapon Shielding (599) Imp. Hover Unit (874) Imp. Hover Unit (874) Ion Engine (599) Propulsion Shielding (599) Flail (559) Imp. Hover Unit (1069) Imp. Hover Unit (1069) Axe (1091) Imp. Grenade Launcher (1116) Airjet (1263) Airjet (1263) Lgt. Nuclear Core (692) Airjet (1263) Maneuvering Thrusters (783) Arm. Wheel (781) Arm. Wheel (781) Lgt. Nuclear Core (654) Arm. Wheel (1040) Game ------ Seed HoverHellfireRecalibrator Manual? 0 Play Time 00:24:34 Cumulative 1102.8 hours Start 2021.09.13 @ 02:46:59 End 2021.09.13 @ 03:13:15 Sessions 1 Manual Loads 0 Difficulty Rogue Special Mode AFD2019/Pay2Buy Game No. 703 Rogue 698 Adventurer 3 Explorer 2 Win Type - Total 18 Types 10/1/4/3/0/0/0/0/0 Lore% 89 Gallery% 91 Achievement% 81 Wizard Run 0 Options --------- ASCII 0 Keyboard 0 Movement Mouse Keybinds 0 Fullscreen 1 Font 24/Crisp Map View 76x50 Tactical HUD 1 Map Filters NONE Filters NONE Steam 1 RUN: 71409021-1772-43be-8f19-f8339af693d4